bitfinex/quotes_SOLUSD_20260117
["timestamp","ask_amount","ask_price","bid_price","bid_amount"]
[1768635725588,1.51601422,143.78,143.75,6.95652173]
[1768635726488,18.90898636,143.78,143.75,6.95652173]
[1768635726789,1.66347738,143.77,143.75,6.95652173]
[1768635730188,8.61907197,143.77,143.74,1.50728408]
[1768635730696,26.01204411,143.77,143.74,1.50728408]
[1768635734292,19.05644952,143.77,143.74,1.50728408]
[1768635742712,19.05644952,143.77,143.74,8.46426516]
[1768635778858,19.05644952,143.77,143.74,1.50728408]
[1768635780266,1.64314675,143.76,143.73,8.46976028]
[1768635780863,1.64314675,143.76,143.73,6.95727714]
[1768635781067,1.64314675,143.76,143.73,9.03808164]
[1768635781271,19.13895236,143.76,143.73,10.55056478]
[1768635783276,26.09501561,143.76,143.73,1.51248314]
[1768635783455,1.64314675,143.75,143.72,8.47039394]
[1768635783655,1.61314673,143.75,143.72,8.47039394]
[1768635784278,19.10895234,143.75,143.72,8.47039394]
[1768635793572,19.10895234,143.75,143.72,1.51248314]
[1768635797489,19.10895234,143.75,143.72,3.59328764]
[1768635798382,19.10895234,143.75,143.72,2.0808045]
[1768635798584,19.10895234,143.75,143.73,1.51248314]
[1768635798888,1.58314673,143.75,143.73,1.51248314]
[1768635799188,8.6414048,143.75,143.73,1.51248314]
[1768635809405,15.59794224,143.75,143.73,1.51248314]
[1768635810281,15.59794224,143.75,143.72,3.61976974]
[1768635813400,15.59794224,143.75,143.72,1.53896524]
[1768635815000,14.01479551,143.75,143.72,1.53896524]
[1768635815502,15.62652158,143.75,143.72,1.53896524]
[1768635825930,1.61172607,143.74,143.71,1.61442001]
[1768635826131,1.58172605,143.74,143.71,1.61442001]
[1768635828621,8.53884203,143.74,143.71,1.61442001]
[1768635831133,8.53884203,143.74,143.71,3.69570463]
[1768635836536,8.53884203,143.74,143.71,1.61442001]
[1768635836738,8.53884203,143.74,143.71,3.69570463]
[1768635837241,8.53884203,143.74,143.71,1.61442001]
[1768635840020,1.49995272,143.73,143.71,1.61442001]
[1768635840220,1.4399527,143.73,143.71,1.61442001]
[1768635840441,1.4399527,143.73,143.71,0.1]
[1768635840833,9.03883092,143.73,143.7,0.1]
[1768635841342,29.91057405,143.73,143.7,0.1]
[1768635841644,27.82928943,143.73,143.7,0.1]
[1768635841942,9.03883092,143.73,143.7,0.1]
[1768635842138,1.49995272,143.71,143.7,0.1]
[1768635842337,1.4699527,143.71,143.7,0.1]
[1768635844947,1.4399527,143.71,143.7,0.1]
[1768635848646,1.4099527,143.71,143.7,0.1]
[1768635848946,6.95838133,143.72,143.7,1.63586759]
[1768635849149,6.95838133,143.72,143.7,0.1]
[1768635850649,8.45833405,143.72,143.7,0.1]
[1768635860560,1.49995272,143.71,143.7,0.1]
[1768635862061,1.46995272,143.71,143.7,0.1]
[1768635881085,1.43995272,143.71,143.7,0.1]
[1768635882381,22.19838133,143.72,143.7,0.1]
[1768635883082,23.85279199,143.72,143.7,0.1]
[1768635884387,1.65441066,143.71,143.7,0.1]
[1768635884580,1.62441066,143.71,143.7,0.1]
[1768635897091,8.58286866,143.71,143.69,0.1]
[1768635897603,1.62441066,143.71,143.69,0.1]
[1768635898411,8.58302867,143.71,143.69,0.1]
[1768635901012,6.95861801,143.71,143.7,1.49842519]
[1768635901183,22.19783632,143.73,143.71,1.47488101]
[1768635901376,22.19783632,143.73,143.71,3.55722139]
[1768635901579,22.19783632,143.73,143.71,2.08234038]
[1768635901580,23.77893135,143.73,143.71,2.08234038]
[1768635905404,23.77893135,143.73,143.7,1.47488439]
[1768635905591,23.77893135,143.73,143.7,3.55722477]
[1768635908004,23.77893135,143.73,143.7,1.47488439]
[1768635908200,23.77893135,143.73,143.7,3.55722477]
[1768635915105,1.58109503,143.72,143.7,3.55722477]
[1768635915318,1.58109503,143.72,143.7,2.08234038]
[1768635924043,1.58109503,143.72,143.69,8.5339975]
[1768635924246,1.58109503,143.72,143.7,2.08234038]
[1768635925140,8.53936037,143.72,143.69,1.5748136]
[1768635925344,8.53936037,143.72,143.69,3.65715398]
[1768635930751,1.63869359,143.71,143.69,0.1]
[1768635932758,1.63869359,143.71,143.69,2.18234038]
[1768635935160,1.63869359,143.71,143.69,0.1]
[1768635935344,1.63869359,143.71,143.69,2.18234038]
[1768635935756,8.59715994,143.71,143.69,0.1]
[1768635935940,1.5440076,143.7,143.67,0.1]
[1768635937063,1.5440076,143.69,143.67,0.1]
[1768635937841,1.5440076,143.69,143.66,0.1]
[1768635938248,4.32787508,143.68,143.66,0.1]
[1768635938752,1.5440076,143.68,143.66,0.1]
[1768635939744,8.50399253,143.68,143.66,0.1]
[1768635942460,1.5440076,143.67,143.66,0.1]
[1768635950978,8.50440295,143.67,143.66,0.1]
[1768635959883,8.50440295,143.67,143.66,1e-08]
[1768635990709,15.24,143.68,143.66,1.47458042]
[1768635990913,15.24,143.68,143.66,3.55814927]
[1768635991116,15.24,143.68,143.66,1.47458042]
[1768635991315,15.24,143.68,143.66,3.55814927]
[1768635991521,8.5537102,143.69,143.66,3.55814927]
[1768635996325,1.54217491,143.68,143.66,2.08356886]
[1768635997020,8.50189449,143.69,143.66,3.55813735]
[1768636006624,8.50189449,143.69,143.66,1.4745685]
[1768636013531,8.50189449,143.69,143.66,3.55742484]
[1768636018940,8.50189449,143.69,143.66,1.4745685]
[1768636022431,8.50189449,143.69,143.66,3.55742484]
[1768636023936,8.50189449,143.69,143.67,2.08285634]
[1768636030539,8.50189449,143.69,143.66,3.55742484]
[1768636046664,8.50189449,143.69,143.66,1.4745685]
[1768636046839,8.50189449,143.69,143.66,3.55742484]
[1768636050155,8.50189449,143.69,143.66,1.4745685]
[1768636050338,8.50189449,143.69,143.66,3.55742484]
[1768636052264,1.4785789,143.68,143.66,2.08285635]
[1768636056484,1.4785789,143.67,143.66,1e-08]
[1768636056692,1.4785789,143.67,143.64,0.1]
[1768636057067,1.4785789,143.67,143.64,9.14459437]
[1768636057384,1.4785789,143.67,143.64,10.68101027]
[1768636058267,1.4785789,143.67,143.65,1.5364159]
[1768636058788,1.4785789,143.67,143.65,3.61927224]
[1768636060980,1.4785789,143.67,143.65,1.5364159]
[1768636069994,1.4785789,143.67,143.64,10.68101027]
[1768636071300,1.4785789,143.67,143.64,10.68149284]
[1768636078310,1.53032831,143.68,143.65,8.46366866]
[1768636080696,1.53032831,143.67,143.64,10.64741886]
[1768636083611,1.53032831,143.67,143.64,8.56407995]
[1768636083797,1.53032831,143.67,143.64,10.64741886]
[1768636099624,1.53032831,143.67,143.64,8.56407995]
[1768636109937,1.53032831,143.67,143.64,10.64741886]
[1768636115530,1.53032831,143.67,143.64,8.56407995]
[1768636118543,1.52928838,143.66,143.64,0.1]
[1768636118729,0.12802334,143.65,143.61,0.1]
[1768636119035,0.12802334,143.64,143.61,0.1]
[1768636119444,0.12839789,143.63,143.61,0.1]
[1768636119646,0.0983979,143.63,143.61,0.1]
[1768636122520,7.0614418,143.64,143.61,0.1]
[1768636125542,7.0614418,143.64,143.61,2.18333891]
[1768636131058,7.0614418,143.64,143.61,0.1]
[1768636131357,7.0614418,143.64,143.61,2.18437663]
[1768636132150,6.96194589,143.64,143.61,2.18437663]
[1768636132351,6.96154714,143.65,143.63,3.70935323]
[1768636132553,6.96154714,143.65,143.63,2.52630434]
[1768636133059,8.24785148,143.65,143.61,9.14751273]
[1768636134446,8.24785148,143.65,143.61,10.77248933]
[1768636134964,8.24785148,143.65,143.62,1.6249766]
[1768636142442,8.24773982,143.65,143.62,1.6249766]
[1768636146573,1.2904665,143.64,143.61,0.1]
[1768636146765,3.34484314,143.63,143.61,0.1]
[1768636147072,3.34484314,143.63,143.6,0.1]
[1768636148373,10.30723475,143.63,143.6,1.7249766]
[1768636151260,8.22285812,143.63,143.6,1.7249766]
[1768636158909,1.26355121,143.61,143.57,1.7249766]
[1768636159059,15.24,143.61,143.57,1.7249766]
[1768636159679,16.50379005,143.61,143.57,1.7249766]
[1768636159973,15.24,143.61,143.57,1.7249766]
[1768636160156,15.24,143.61,143.58,1.6249766]
[1768636161181,22.20341951,143.61,143.58,1.6249766]
[1768636162580,6.96341951,143.61,143.58,1.6249766]
[1768636166686,22.20290299,143.62,143.58,1.6249766]
[1768636166859,22.20290299,143.62,143.59,1.61236637]
[1768636167061,6.96290299,143.62,143.59,1.61236637]
[1768636167258,8.22850753,143.62,143.59,1.61236637]
[1768636168988,6.96290299,143.62,143.59,1.61236637]
[1768636169767,8.22914588,143.62,143.59,1.61236637]
[1768636176297,6.96290299,143.62,143.59,1.61236637]
[1768636176475,6.96290299,143.62,143.59,3.696743]
[1768636176791,6.96290299,143.62,143.6,1.49320749]
[1768636183297,22.20242582,143.63,143.6,1.49320749]
[1768636186198,23.47189639,143.63,143.6,1.49320749]
[1768636194302,1.27093936,143.62,143.59,1.62052797]
[1768636195796,25.55834416,143.63,143.59,1.62052797]
[1768636196193,25.55834416,143.63,143.57,7.06523505]
[1768636196194,1.27124553,143.61,143.57,7.06523505]
[1768636196586,3.35591834,143.61,143.57,1.72052797]
[1768636198400,6.9637883,143.6,143.57,1.72052797]
[1768636200587,1.27198071,143.6,143.57,1.72052797]
[1768636202188,8.23589322,143.6,143.57,1.72052797]
[1768636203407,8.23675672,143.59,143.57,0.1]
[1768636209218,6.96449362,143.59,143.57,0.1]
[1768636209603,8.23769525,143.59,143.57,0.1]
[1768636210504,6.96449362,143.59,143.57,1.72052797]
[1768636216617,8.23856086,143.59,143.57,0.1]
[1768636217300,6.96449362,143.59,143.57,1.72052797]
[1768636219624,8.23891094,143.59,143.57,1.72052797]
[1768636221424,6.96449362,143.59,143.57,1.72052797]
[1768636242679,8.24140112,143.59,143.57,0.1]
[1768636246381,6.96449362,143.59,143.57,1.73359192]
[1768636255290,8.24243819,143.59,143.57,1e-08]
[1768636255507,1.27801808,143.57,143.56,1e-08]
[1768636255796,6.96449362,143.59,143.56,1.50905714]
[1768636255797,8.2425117,143.59,143.56,1.50905714]
[1768636255970,8.2425117,143.59,143.56,1.34658133]
[1768636255971,5.21858343,143.58,143.56,1.34658133]
[1768636256172,23.4825117,143.59,143.56,1.34658133]
[1768636260182,6.9637883,143.6,143.57,1.50905713]
[1768636260384,22.2037883,143.6,143.57,1.44905713]
[1768636261090,23.70463725,143.6,143.57,3.53481632]
[1768636261290,8.46463725,143.6,143.57,3.53481632]
[1768636262595,1.50084895,143.6,143.57,3.53481632]
[1768636263897,1.50084895,143.6,143.57,1.44905713]
[1768636265295,22.20347086,143.61,143.57,1.44905713]
[1768636265495,23.70464796,143.61,143.57,1.44905713]
[1768636272400,15.24,143.61,143.58,1.50905713]
[1768636284524,15.24,143.61,143.59,1.63603974]
[1768636302717,22.20332383,143.61,143.59,1.63603974]
[1768636303232,18.90937852,143.64,143.6,1.56994495]
[1768636303440,16.86895083,143.63,143.6,1.56994495]
[1768636303640,16.86895083,143.63,143.58,2.2402694]
[1768636303829,16.86895083,143.63,143.59,0.15451021]
[1768636303830,1.62895083,143.62,143.59,0.15451021]
[1768636304342,8.59223046,143.62,143.58,2.2402694]
[1768636304640,1.62895083,143.61,143.58,2.2402694]
[1768636307044,6.96330843,143.61,143.58,2.2402694]
[1768636307336,1.62895083,143.64,143.61,0.15466254]
[1768636307542,1.62895083,143.64,143.61,2.24042173]
[1768636307744,1.59895084,143.64,143.61,2.24042173]
[1768636308541,69.82832437,143.66,143.62,2.27075063]
[1768636308840,62.86740876,143.66,143.63,2.27075063]
[1768636309022,15.24,143.67,143.64,0.18499144]
[1768636309222,6.96000789,143.68,143.64,2.27075063]
[1768636309732,1.62895083,143.67,143.64,2.27075063]
[1768636311940,1.59972827,143.68,143.65,2.27183612]
[1768636313942,1.59972827,143.67,143.63,2.27235634]
[1768636314949,1.59972827,143.67,143.64,2.08575919]
[1768636315333,1.59972827,143.67,143.64,2.0832623]
[1768636316546,1.59972827,143.66,143.62,2.0832623]
[1768636317849,1.59972827,143.65,143.62,2.0832623]
[1768636319556,1.56972828,143.65,143.62,2.0832623]
[1768636320037,1.53972829,143.65,143.62,2.0832623]
[1768636320238,1.53972829,143.65,143.61,9.2338092]
[1768636320835,8.50112969,143.65,143.61,9.2338092]
[1768636321235,8.50112969,143.65,143.61,9.04645984]
[1768636321446,8.50112969,143.65,143.61,9.29500637]
[1768636321663,6.96087985,143.66,143.61,9.29500637]
[1768636322164,1.59972827,143.65,143.61,9.29500637]
[1768636322768,1.59972827,143.65,143.62,2.0832623]
[1768636322979,1.59972827,143.65,143.62,2.33204008]
[1768636324879,8.56115338,143.65,143.62,0.24877778]
[1768636325053,8.56115338,143.65,143.61,9.29569218]
[1768636325475,1.59972827,143.64,143.61,9.29569218]
[1768636325664,6.96142511,143.65,143.61,9.29569218]
[1768636326177,6.96087985,143.66,143.61,9.29569218]
[1768636326697,6.96087985,143.66,143.61,9.04645984]
[1768636326860,6.96087985,143.66,143.62,0.27968336]
[1768636327782,8.56112672,143.65,143.61,9.32636483]
[1768636328455,1.59972827,143.66,143.63,0.28012408]
[1768636328977,1.59972827,143.66,143.63,2.36338638]
[1768636331580,1.59972827,143.66,143.63,0.28012408]
[1768636331784,1.59972827,143.66,143.63,2.36338638]
[1768636334378,1.56972828,143.66,143.63,2.36338638]
[1768636336179,1.56972828,143.66,143.63,1.86338638]
[1768636337177,1.59972827,143.65,143.62,2.0832623]
[1768636337358,1.56972828,143.65,143.62,2.14491913]
[1768636342066,1.53972829,143.65,143.62,9.10773641]
[1768636343395,6.96039535,143.67,143.62,9.10773641]
[1768636344183,1.63372322,143.66,143.62,9.10773641]
[1768636345087,8.5946474,143.66,143.62,9.10773641]
[1768636347001,1.63372322,143.65,143.62,0.06165683]
[1768636347194,1.63372322,143.65,143.6,7.05744327]
[1768636347499,1.63372322,143.65,143.6,9.14070557]
[1768636349700,1.63372322,143.64,143.6,9.14070557]
[1768636350284,1.63372322,143.64,143.61,2.0832623]
[1768636354280,1.63372322,143.64,143.6,2.17698784]
[1768636355602,8.4933101,143.65,143.61,2.0832623]
[1768636355776,1.53175527,143.66,143.63,0.09541913]
[1768636355981,1.53175527,143.66,143.63,2.17868143]
[1768636357298,23.73246809,143.67,143.63,0.09541913]
[1768636357478,23.73246809,143.67,143.63,2.17868143]
[1768636358578,1.53175527,143.66,143.63,2.17868143]
[1768636358779,1.50175528,143.66,143.63,2.17868143]
[1768636359701,8.46271175,143.66,143.63,2.17868143]
[1768636363500,1.53175527,143.67,143.64,0.12663995]
[1768636364796,6.96087985,143.66,143.64,0.12663995]
[1768636366311,1.53175527,143.66,143.63,2.21018896]
[1768636367405,8.49275686,143.66,143.63,2.21018896]
[1768636369012,8.49275686,143.66,143.63,0.12692666]
[1768636378916,1.65280801,143.65,143.61,9.17536687]
[1768636386427,1.65280801,143.65,143.62,0.12956902]
[1768636387224,1.65280801,143.65,143.61,9.176288]
[1768636406032,8.61429642,143.65,143.61,9.176288]
[1768636406229,1.56201736,143.64,143.61,2.08340919]
[1768636407634,1.56201736,143.64,143.62,2.08340919]
[1768636414238,24.3621215,143.67,143.62,2.08340919]
[1768636414438,24.3621215,143.67,143.61,1.57944063]
[1768636414620,24.3621215,143.67,143.62,2.08340919]
[1768636416144,1.54002751,143.64,143.62,2.08340919]
[1768636417320,1.54002751,143.63,143.61,2.08340919]
[1768636417654,1.54002751,143.63,143.6,2.08340919]
[1768636418942,1.54002751,143.63,143.61,2.08340919]
[1768636419125,1.54002751,143.63,143.6,2.08340919]
[1768636421056,1.54002751,143.62,143.59,1.57944063]
[1768636421260,1.54002751,143.62,143.6,2.08340919]
[1768636423662,1.54002751,143.61,143.55,1.67944063]
[1768636423829,1.54002751,143.6,143.55,3.76284982]
[1768636424450,1.54002751,143.6,143.56,2.08340919]
[1768636424661,6.96427327,143.59,143.56,3.66284982]
[1768636424847,1.54002751,143.6,143.57,3.66284982]
[1768636425644,1.54002751,143.6,143.57,2.08340919]
[1768636426258,1.54002751,143.63,143.59,1.57944063]
[1768636426557,1.54002751,143.63,143.6,2.08340919]
[1768636427332,8.50270188,143.63,143.6,2.08340919]
[1768636428654,8.50270188,143.63,143.59,1.57944063]
[1768636428837,8.50270188,143.63,143.6,2.08340919]
[1768636434859,8.50270188,143.63,143.59,1.57944063]
[1768636435047,8.50270188,143.63,143.6,2.08340919]
[1768636435246,8.50270188,143.63,143.59,3.66284982]
[1768636437358,8.50270188,143.63,143.59,3.66400293]
[1768636437550,1.55914023,143.62,143.58,2.0845623]
[1768636437750,1.55914023,143.62,143.57,3.64787522]
[1768636437946,1.55914023,143.61,143.57,1.56331292]
[1768636438256,1.55914023,143.61,143.57,3.64787522]
[1768636439754,8.52292209,143.61,143.57,3.64787522]
[1768636441151,8.52292209,143.61,143.57,2.0845623]
[1768636441358,1.55914023,143.6,143.57,3.64787522]
[1768636442355,1.55914023,143.6,143.58,2.0845623]
[1768636442534,62.86740876,143.65,143.6,1.56331292]
[1768636442535,8.52161135,143.63,143.6,1.56331292]
[1768636442742,8.52161135,143.63,143.61,2.0845623]
[1768636443252,1.55914023,143.63,143.61,2.0845623]
[1768636443453,8.52098929,143.64,143.61,3.64787522]
[1768636447761,8.52170434,143.63,143.61,2.0845623]
[1768636449656,8.52170434,143.63,143.6,3.64787522]
[1768636452555,8.52170434,143.63,143.61,1.56331292]
[1768636456342,8.52170434,143.63,143.6,3.64787522]
[1768636456542,17.3245623,143.66,143.63,1.56331292]
[1768636456543,8.52002008,143.66,143.63,1.56331292]
[1768636456743,8.52002008,143.66,143.63,3.64787522]
[1768636457765,8.51958525,143.67,143.64,3.64787522]
[1768636457959,8.51958525,143.67,143.65,1.56331292]
[1768636458167,6.96044502,143.67,143.65,1.50331292]
[1768636459765,8.51958525,143.67,143.64,2.0845623]
[1768636460168,8.51958525,143.67,143.64,3.64787522]
[1768636462267,8.51958525,143.67,143.65,1.5239755]
[1768636462969,8.51958525,143.67,143.64,3.6085378]
[1768636465064,8.51958525,143.67,143.65,1.5239755]
[1768636465660,1.51297348,143.68,143.65,1.5239755]
[1768636467472,8.47296719,143.68,143.65,1.5239755]
[1768636467868,8.47296719,143.68,143.65,3.6085378]
[1768636471071,8.47296719,143.68,143.65,3.5485378]
[1768636473676,8.47296719,143.68,143.65,3.4885378]
[1768636474884,8.47296719,143.68,143.65,1.4039755]
[1768636482264,8.47296719,143.68,143.65,1.3439755]
[1768636489401,8.47296719,143.68,143.65,3.4285378]
[1768636491998,8.47296719,143.68,143.65,1.3439755]
[1768636501190,8.47296719,143.68,143.65,1.2839755]
[1768636502693,8.47296719,143.68,143.65,1.2239755]
[1768636504104,8.47296719,143.68,143.62,6.96259966]
[1768636504105,25.87274447,143.68,143.62,6.96259966]
[1768636504994,25.87274447,143.68,143.59,24.3743168]
[1768636505196,25.87274447,143.68,143.59,86.7743168]
[1768636506212,25.87274447,143.68,143.62,1.60180393]
[1768636507110,25.87274447,143.68,143.63,1.60180393]
[1768636508424,8.59956574,143.69,143.64,1.60180393]
[1768636508614,6.95942654,143.69,143.64,1.60180393]
[1768636508924,8.59956574,143.69,143.64,1.60180393]
[1768636509792,8.59956574,143.69,143.64,8.56361733]
[1768636509999,8.59956574,143.69,143.65,1.60180393]
[1768636514031,1.6401392,143.68,143.65,1.60180393]
[1768636514430,1.6401392,143.68,143.64,8.56361733]
[1768636514630,1.6401392,143.68,143.64,1.60180393]
[1768636516404,6.96027849,143.68,143.64,1.60180393]
[1768636516610,1.6401392,143.67,143.64,1.60180393]
[1768636518747,8.60041769,143.68,143.64,1.60180393]
[1768636522443,8.60041769,143.68,143.64,8.5636299]
[1768636523640,8.60041769,143.68,143.65,1.53486551]
[1768636548082,1.6048295,143.67,143.61,1.65908447]
[1768636548271,1.6048295,143.65,143.6,8.62257768]
[1768636548572,1.6048295,143.64,143.59,8.62319023]
[1768636549069,1.6048295,143.64,143.6,1.65908447]
[1768636549665,1.6048295,143.64,143.6,8.62282119]
[1768636550067,1.6048295,143.65,143.61,1.65908447]
[1768636550272,1.6048295,143.66,143.61,1.65908447]
[1768636551476,1.6048295,143.66,143.62,1.65908447]
[1768636552367,8.56571098,143.66,143.62,1.65908447]
[1768636556167,1.5608356,143.65,143.62,1.65908447]
[1768636558787,8.52171708,143.66,143.62,1.65908447]
[1768636560611,1.5608356,143.65,143.62,1.65908447]
[1768636560889,8.52123095,143.67,143.62,8.62185412]
[1768636561203,8.52123095,143.67,143.63,1.6604056]
[1768636562879,8.52082744,143.68,143.64,1.6604056]
[1768636567715,8.52082744,143.68,143.65,1.6604056]
[1768636572111,8.52026214,143.69,143.65,6.96129402]
[1768636572318,8.52026214,143.69,143.66,1.6604056]
[1768636581418,17.39774177,143.7,143.66,1.6604056]
[1768636581419,25.91751961,143.7,143.66,1.6604056]
[1768636581610,8.51977784,143.7,143.66,1.6604056]
[1768636582202,1.62999424,143.69,143.66,1.6604056]
[1768636590654,8.5894377,143.69,143.66,1.6604056]
[1768636593937,6.95944346,143.69,143.66,1.6604056]
[1768636597240,8.58709551,143.69,143.66,1.6604056]
[1768636599632,32.63531351,143.72,143.66,1.6604056]
[1768636601745,1.62765205,143.7,143.66,1.6604056]
[1768636602445,8.58611005,143.71,143.67,1.53277807]
[1768636603949,8.58611005,143.71,143.68,1.53277807]
[1768636605447,6.95813623,143.72,143.68,1.53277807]
[1768636606238,6.95748973,143.73,143.68,8.49268607]
[1768636607425,1.2449831,143.72,143.68,8.49268607]
[1768636609156,8.2031565,143.72,143.68,8.49268607]
[1768636610428,1.24490782,143.71,143.68,1.53277807]
[1768636611442,1.24490782,143.71,143.66,6.96060979]
[1768636611648,1.24490782,143.71,143.66,1.67621169]
[1768636611834,1.24490782,143.71,143.65,8.6374024]
[1768636612033,1.24490782,143.71,143.66,1.67621169]
[1768636612333,1.24495063,143.7,143.66,1.67621169]
[1768636613053,1.24496457,143.69,143.66,1.67621169]
[1768636616555,1.24496457,143.69,143.66,8.63702025]
[1768636618353,8.20423705,143.7,143.67,1.67621169]
[1768636628645,1.24503192,143.7,143.67,1.67621169]
[1768636630041,6.95865717,143.71,143.67,6.9603588]
[1768636630247,16.48517853,143.72,143.68,1.67621169]
[1768636630248,1.24517853,143.72,143.68,1.67621169]
[1768636631459,1.24517853,143.72,143.68,8.63566779]
[1768636631664,1.24517853,143.72,143.69,1.67621169]
[1768636632756,6.95778235,143.73,143.69,1.67621169]
[1768636633073,6.95778235,143.73,143.7,1.67621169]
[1768636634064,8.2030054,143.73,143.7,1.67621169]
[1768636636065,8.2030054,143.73,143.7,1.61621169]
[1768636641255,8.2030054,143.73,143.7,1.55621169]
[1768636643997,6.95778235,143.73,143.7,1.55621169]
[1768636644283,8.52244405,143.74,143.71,1.53744738]
[1768636650693,1.36545606,143.73,143.68,1.53744738]
[1768636650875,1.36545606,143.71,143.68,1.53744738]
[1768636651081,1.33545607,143.71,143.68,1.53744738]
[1768636651262,3.41772313,143.71,143.68,1.53744738]
[1768636652181,9.0411565,143.71,143.66,6.96077426]
[1768636652385,9.0411565,143.71,143.67,1.61775805]
[1768636653072,1.33550497,143.7,143.67,1.61775805]
[1768636653277,1.30550498,143.7,143.67,1.61775805]
[1768636654881,6.95925691,143.7,143.66,1.61775805]
[1768636655085,9.04152397,143.7,143.66,1.61775805]
[1768636655384,1.30553665,143.69,143.66,1.61775805]
[1768636655571,1.27553666,143.69,143.66,1.61775805]
[1768636656284,1.24553667,143.69,143.66,1.61775805]
[1768636656787,1.21553668,143.69,143.66,1.61775805]
[1768636660092,1.21553668,143.69,143.66,8.57847552]
[1768636662901,1.21553668,143.69,143.66,6.96071747]
[1768636663074,8.17496176,143.7,143.67,1.61775805]
[1768636670202,1.21570485,143.7,143.67,1.61775805]
[1768636674683,1.21570485,143.7,143.66,8.47793853]
[1768636675908,3.29797191,143.7,143.66,8.47793853]
[1768636677608,3.29797191,143.7,143.67,1.51727458]
[1768636679309,3.2984734,143.7,143.67,1.51727458]
[1768636680610,10.25754496,143.7,143.67,1.51727458]
[1768636687027,1.21624551,143.69,143.66,1.51727458]
[1768636687195,1.21624551,143.67,143.64,1.51727458]
[1768636687396,3.26901407,143.67,143.64,1.51727458]
[1768636689219,10.22950408,143.67,143.64,1.51727458]
[1768636691113,10.19950409,143.67,143.64,1.51727458]
[1768636698631,10.1695041,143.67,143.64,1.51727458]
[1768636718364,32.63912525,143.69,143.64,1.51727458]
[1768636718365,24.35855179,143.69,143.64,1.51727458]
[1768636718664,42.80817635,143.69,143.64,1.51727458]
[1768636718963,1.12685601,143.67,143.64,1.51727458]
[1768636719563,6.96060276,143.67,143.64,1.51727458]
[1768636721372,8.08749007,143.67,143.64,1.51727458]
[1768636729168,10.17025862,143.67,143.64,1.51727458]
[1768636729376,3.20977408,143.66,143.63,1.63620621]
[1768636729560,3.20978811,143.64,143.61,1.63620621]
[1768636729762,3.17978812,143.64,143.61,1.63620621]
[1768636730168,1.09701957,143.64,143.61,1.63620621]
[1768636731476,8.05897242,143.64,143.61,1.63620621]
[1768636734471,8.02897243,143.64,143.61,1.63620621]
[1768636738684,7.99897244,143.64,143.61,1.63620621]
[1768636741080,2.05430605,143.63,143.57,1.56003694]
[1768636741286,2.08430604,143.63,143.58,1.56003694]
[1768636741480,9.04670629,143.63,143.59,8.52429844]
[1768636748203,2.08430604,143.63,143.59,8.52429844]
[1768636749212,2.08430604,143.63,143.59,1.56003694]
[1768636749421,2.08430604,143.62,143.59,1.56003694]
[1768636749992,2.08430604,143.62,143.58,6.96471814]
[1768636750312,9.04731611,143.62,143.58,8.52475508]
[1768636752794,9.04731611,143.62,143.58,1.56003694]
[1768636754413,24.28731611,143.62,143.58,1.56003694]
[1768636755917,24.25731612,143.62,143.58,1.56003694]
[1768636760825,39.61005644,143.62,143.58,1.56003694]
[1768636761034,2.08430604,143.61,143.58,1.56003694]
[1768636761840,22.20301007,143.62,143.58,1.56003694]
[1768636762041,6.96301007,143.62,143.58,1.56003694]
[1768636762243,22.20301007,143.62,143.58,1.56003694]
[1768636763344,24.25731612,143.62,143.58,1.56003694]
[1768636766422,9.01731612,143.62,143.58,1.56003694]
[1768636766640,24.25731612,143.62,143.58,1.56003694]
[1768636767039,9.01731612,143.62,143.58,1.56003694]
[1768636767241,2.08430604,143.61,143.57,1.53051177]
[1768636768120,9.0477793,143.61,143.57,1.53051177]
[1768636770627,9.0477793,143.61,143.56,6.96552684]
[1768636770628,2.08430604,143.59,143.56,1.53051177]
[1768636773142,9.04862059,143.59,143.56,1.53051177]
[1768636773647,2.08430604,143.58,143.56,1.53051177]
[1768636774346,2.08430604,143.59,143.56,1.53051177]
[1768636775953,2.08430604,143.58,143.56,1.53051177]
[1768636776245,9.04917383,143.58,143.56,1.53051177]
[1768636776637,9.04917383,143.58,143.55,1.75594677]
[1768636778322,2.08430604,143.57,143.55,1.75594677]
[1768636779227,9.04917383,143.58,143.55,1.75594677]
[1768636782228,2.08430604,143.57,143.54,1.85159107]
[1768636782436,24.37676359,143.58,143.54,1.85159107]
[1768636782437,6.96486779,143.58,143.54,1.85159107]
[1768636782726,29.27246172,143.58,143.54,1.85159107]
[1768636782930,22.20486779,143.58,143.54,1.85159107]
[1768636783444,22.20486779,143.58,143.54,8.81827967]
[1768636783644,22.20486779,143.58,143.55,1.65594677]
[1768636784834,24.28917383,143.58,143.55,1.65594677]
[1768636786356,22.20486779,143.58,143.55,1.65594677]
[1768636786544,24.28917383,143.58,143.55,1.65594677]
[1768636789451,2.08430604,143.57,143.54,1.65594678]
[1768636791162,41.70106963,143.58,143.54,1.65594678]
[1768636794662,2.08430604,143.57,143.54,1e-08]
[1768636798776,26.46303297,143.57,143.54,1e-08]